fUST/lending_fUST_20250930
["ID","MTS","AMOUNT","RATE_DAILY","PERIOD"]
[388457011,1759176639716,-537.03,0.00021984,2]
[388457012,1759176639725,-480.0,0.00021984,2]
[388457013,1759176639734,-480.0,0.00021984,2]
[388457014,1759176639743,-480.0,0.00021984,2]
[388457015,1759176639752,-695.7,0.00021984,2]
[388457016,1759176639761,-480.0,0.00021984,2]
[388457017,1759176639771,-520.0,0.00021984,2]
[388457018,1759176639780,-480.0,0.00021984,2]
[388457019,1759176639789,-480.0,0.00021984,2]
[388457020,1759176639798,-480.0,0.00021984,2]
[388457021,1759176639807,-480.0,0.00021984,2]
[388457022,1759176639816,-1166.45,0.00021984,2]
[388457023,1759176639825,-480.0,0.00021984,2]
[388457024,1759176639834,-480.0,0.00021984,2]
[388457025,1759176639843,-862.32,0.00021984,2]
[388457026,1759176639853,-823.38,0.00021984,2]
[388457027,1759176639862,-480.0,0.00021984,2]
[388457028,1759176639872,-843.7,0.00021984,2]
[388457029,1759176639882,-623.05,0.00021984,2]
[388457030,1759176639893,-480.0,0.00021984,2]
[388457031,1759176639903,-480.0,0.00021984,2]
[388457032,1759176639912,-480.0,0.00021984,2]
[388457033,1759176639921,-480.0,0.00021984,2]
[388457034,1759176639930,-1062.46,0.00021984,2]
[388457035,1759176639939,-480.0,0.00021984,2]
[388457036,1759176639948,-480.0,0.00021984,2]
[388457037,1759176639956,-480.0,0.00021984,2]
[388457038,1759176639966,-480.0,0.00021984,2]
[388457039,1759176639975,-480.0,0.00021984,2]
[388457040,1759176639984,-480.0,0.00021984,2]
[388457041,1759176639992,-480.0,0.00021984,2]
[388457042,1759176640002,-480.0,0.00021984,2]
[388457043,1759176640011,-489.79,0.00021984,2]
[388457044,1759176640019,-480.0,0.00021984,2]
[388457045,1759176640029,-480.0,0.00021984,2]
[388457046,1759176640038,-480.0,0.00021984,2]
[388457047,1759176640047,-480.0,0.00021984,2]
[388457048,1759176640056,-570.79,0.00021984,2]
[388457049,1759176640065,-758.01,0.00021984,2]
[388457050,1759176640073,-480.0,0.00021984,2]
[388457051,1759176640082,-202.80129245,0.00021984,2]
[388457052,1759176640091,-591.81,0.00021984,2]
[388457053,1759176640100,-480.0,0.00021984,2]
[388457054,1759176640110,-480.0,0.00021984,2]
[388457055,1759176640119,-480.0,0.00021984,2]
[388457056,1759176640130,-553.26,0.00021984,2]
[388457057,1759176640139,-479.86677199,0.00021984,2]
[388457058,1759176640148,-480.0,0.00021984,2]
[388457059,1759176640157,-480.0,0.00021984,2]
[388457060,1759176640166,-606.13,0.00021984,2]
[388457061,1759176640175,-480.0,0.00021984,2]
[388457062,1759176640184,-480.0,0.00021984,2]
[388457063,1759176640193,-480.0,0.00021984,2]
[388457064,1759176640202,-490.52,0.00021984,2]
[388457065,1759176640211,-730.13,0.00021984,2]
[388457066,1759176640221,-480.0,0.00021984,2]
[388457067,1759176640230,-628.38,0.00021984,2]
[388457068,1759176640239,-623.44133263,0.00021984,2]
[388457069,1759176640248,-480.0,0.00021984,2]
[388457070,1759176640257,-480.0,0.00021984,2]
[388457071,1759176640266,-480.0,0.00021984,2]
[388457073,1759176640275,-480.0,0.00021984,2]
[388457074,1759176640466,-480.0,0.00021984,2]
[388457075,1759176640475,-480.0,0.00021984,2]
[388457076,1759176640485,-628.21,0.00021984,2]
[388457077,1759176640495,-480.0,0.00021984,2]
[388457078,1759176640504,-480.0,0.00021984,2]
[388457079,1759176640513,-480.0,0.00021984,2]
[388457080,1759176640522,-480.0,0.00021984,2]
[388457081,1759176640532,-577.46,0.00021984,2]
[388457082,1759176640541,-870.14,0.00021984,2]
[388457083,1759176640551,-604.98,0.00021984,2]
[388457084,1759176640560,-480.0,0.00021984,2]
[388457085,1759176640569,-480.0,0.00021984,2]
[388457086,1759176640578,-842.47,0.00021984,2]
[388457087,1759176640587,-1537.8,0.00021984,2]
[388457088,1759176640596,-480.0,0.00021984,2]
[388457089,1759176640605,-480.0,0.00021984,2]
[388457090,1759176640613,-490.86,0.00021984,2]
[388457091,1759176640623,-640.46,0.00021984,2]
[388457092,1759176640632,-480.0,0.00021984,2]
[388457093,1759176640641,-480.0,0.00021984,2]
[388457094,1759176640650,-480.0,0.00021984,2]
[388457095,1759176640660,-1640.88,0.00021984,2]
[388457096,1759176640669,-480.0,0.00021984,2]
[388457097,1759176640678,-480.0,0.00021984,2]
[388457098,1759176640687,-480.0,0.00021984,2]
[388457099,1759176640696,-775.04,0.00021984,2]
[388457100,1759176640705,-480.0,0.00021984,2]
[388457101,1759176640715,-480.0,0.00021984,2]
[388457102,1759176640723,-545.04,0.00021984,2]
[388457103,1759176640732,-599.5,0.00021984,2]
[388457104,1759176640741,-480.0,0.00021984,2]
[388457105,1759176640751,-480.0,0.00021984,2]
[388457106,1759176640759,-480.0,0.00021984,2]
[388457107,1759176640768,-480.0,0.00021984,2]
[388457108,1759176640777,-577.36,0.00021984,2]
[388457109,1759176640787,-480.0,0.00021984,2]
[388457110,1759176640796,-480.0,0.00021984,2]
[388457111,1759176640805,-659.41,0.00021984,2]
[388457112,1759176640814,-1370.88,0.00021984,2]
[388457113,1759176640824,-578.91,0.00021984,2]
[388457114,1759176640835,-480.0,0.00021984,2]
[388457115,1759176640844,-963.73,0.00021984,2]
[388457116,1759176640853,-480.0,0.00021984,2]
[388457117,1759176640863,-480.0,0.00021984,2]
[388457118,1759176640874,-480.0,0.00021984,2]
[388457120,1759176640890,-780.14,0.00021984,2]
[388457122,1759176640900,-480.0,0.00021984,2]
[388457124,1759176640909,-480.0,0.00021984,2]
[388457126,1759176640918,-960.2,0.00021984,2]
[388457128,1759176640928,-500.0,0.00021984,2]
[388457129,1759176640938,-480.0,0.00021984,2]
[388457131,1759176640947,-480.0,0.00021984,2]
[388457133,1759176640957,-480.0,0.00021984,2]
[388457135,1759176640966,-480.0,0.00021984,2]
[388457137,1759176640976,-480.0,0.00021984,2]
[388457139,1759176640986,-480.0,0.00021984,2]
[388457141,1759176640994,-480.0,0.00021984,2]
[388457143,1759176641004,-480.0,0.00021984,2]
[388457145,1759176641013,-480.0,0.00021984,2]
[388457146,1759176641022,-480.0,0.00021984,2]
[388457147,1759176641031,-480.0,0.00021984,2]
[388457149,1759176641040,-1708.59,0.00021984,2]
[388457150,1759176641049,-480.0,0.00021985,2]
[388457152,1759176641058,-527.78722746,0.00021985,2]
[388457153,1759176641067,-480.0,0.00021985,2]
[388457154,1759176641076,-480.0,0.00021985,2]
[388457156,1759176641085,-480.0,0.00021985,2]
[388457158,1759176641094,-480.0,0.00021985,2]
[388457159,1759176641104,-480.0,0.00021985,2]
[388457160,1759176641113,-480.0,0.00021985,2]
[388457161,1759176641122,-480.0,0.00021987,2]
[388457162,1759176641132,-480.0,0.00021987,2]
[388457163,1759176641142,-480.0,0.00021987,2]
[388457164,1759176641151,-480.0,0.00021987,2]
[388457165,1759176641161,-480.0,0.00021987,2]
[388457166,1759176641171,-480.0,0.00021987,2]
[388457167,1759176641180,-480.0,0.00021987,2]
[388457168,1759176641190,-480.0,0.00021987,2]
[388457169,1759176641201,-480.0,0.00021987,2]
[388457170,1759176641211,-480.0,0.00021987,2]
[388457171,1759176641221,-500.0,0.00021987,2]
[388457172,1759176641230,-5772.73079111,0.0002199,2]
[388457173,1759176641239,-2698.71703946,0.00022048,2]
[388457174,1759176641250,-1638.93877618,0.00022155,2]
[388457175,1759176641259,-500.0,0.00022161,2]
[388457176,1759176641269,-156.65,0.00022161,2]
[388457177,1759176641279,-156.65,0.00022161,2]
[388457178,1759176641288,-156.65,0.00022161,2]
[388457179,1759176641297,-156.65,0.00022161,2]
[388457180,1759176641306,-156.67,0.00022161,2]
[388457181,1759176641315,-400.0,0.00022184,2]
[388457182,1759176641323,-1000.0,0.00022221,2]
[388457183,1759176641333,-1000.0,0.00022221,2]
[388457184,1759176641342,-151.0,0.00022221,2]
[388457185,1759176641351,-1000.0,0.00022221,2]
[388457186,1759176641360,-1000.0,0.00022221,2]
[388457187,1759176641369,-1000.0,0.00022221,2]
[388457188,1759176641378,-1000.0,0.00022221,2]
[388457189,1759176641387,-1082.87501218,0.00022221,2]
[388457190,1759176641396,-1000.0,0.00022221,2]
[388457191,1759176641405,-804.19434963,0.00022221,2]
[388457192,1759176641414,-480.0,0.00022253,2]
[388457193,1759176641423,-480.0,0.00022253,2]
[388457194,1759176641432,-480.0,0.00022253,2]
[388457195,1759176641441,-703.47,0.00022253,2]
[388457196,1759176641450,-2642.2,0.00022253,2]
[388457197,1759176641464,-480.0,0.00022253,2]
[388457198,1759176641473,-480.0,0.00022253,2]
[388457199,1759176641482,-480.0,0.00022253,2]
[388457200,1759176641491,-1435.73,0.00022253,2]
[388457201,1759176641502,-968.74,0.00022253,2]
[388457202,1759176641510,-480.0,0.00022253,2]
[388457203,1759176641519,-2684.38,0.00022253,2]
[388457204,1759176641530,-619.36,0.00022253,2]
[388457205,1759176641538,-480.0,0.00022255,2]
[388457206,1759176641547,-481.46208121,0.00022255,2]
[388457207,1759176641556,-480.0,0.00022255,2]
[388457208,1759176641565,-480.0,0.00022255,2]
[388457209,1759176641574,-480.0,0.00022255,2]
[388457210,1759176641583,-480.0,0.00022255,2]
[388457211,1759176641592,-480.0,0.00022255,2]
[388457212,1759176641600,-480.0,0.00022255,2]
[388457213,1759176641609,-1509.01,0.00022255,2]
[388457214,1759176641618,-480.0,0.00022255,2]
[388457215,1759176641627,-480.0,0.00022255,2]
[388457216,1759176641636,-1883.86,0.00022255,2]
[388457217,1759176641645,-236.49932577,0.00022255,2]
[388457218,1759176641655,-480.0,0.00022255,2]
[388457219,1759176641664,-636.88,0.00022255,2]
[388457220,1759176641673,-517.28,0.00022255,2]
[388457221,1759176641683,-480.0,0.00022255,2]
[388457222,1759176641693,-1117.31,0.00022255,2]
[388457223,1759176641702,-760.29,0.00022255,2]
[388457224,1759176641711,-480.0,0.00022255,2]
[388457225,1759176641720,-958.85,0.00022255,2]
[388457226,1759176641729,-480.0,0.00022255,2]
[388457227,1759176641738,-480.0,0.00022255,2]
[388457228,1759176641747,-1403.22,0.00022255,2]
[388457229,1759176641756,-480.0,0.00022255,2]
[388457230,1759176641765,-1556.87,0.00022255,2]
[388457231,1759176641775,-480.0,0.00022255,2]
[388457232,1759176641784,-480.0,0.00022255,2]
[388457233,1759176641794,-537.09,0.00022255,2]
[388457234,1759176641803,-480.0,0.00022255,2]
[388457235,1759176641812,-480.0,0.00022255,2]
[388457236,1759176641823,-753.32,0.00022255,2]
[388457237,1759176641832,-956.0,0.00022255,2]
[388457238,1759176641841,-6610.25,0.00022255,2]
[388457239,1759176641850,-1490.14,0.00022255,2]
[388457240,1759176641860,-2189.71,0.00022255,2]
[388457241,1759176641869,-480.0,0.00022255,2]
[388457242,1759176641878,-480.0,0.00022255,2]
[388457243,1759176641887,-2218.2,0.00022255,2]
[388457244,1759176641896,-480.0,0.00022255,2]
[388457245,1759176641905,-600.44,0.00022255,2]
[388457246,1759176641915,-1554.07,0.00022255,2]
[388457247,1759176641924,-480.0,0.00022255,2]
[388457248,1759176641933,-748.07,0.00022257,2]
[388457249,1759176641942,-480.0,0.00022257,2]
[388457250,1759176641951,-480.0,0.00022257,2]
[388457251,1759176641960,-480.0,0.00022257,2]
[388457252,1759176641969,-480.0,0.00022257,2]
[388457253,1759176641979,-480.0,0.00022257,2]
[388457254,1759176641987,-480.0,0.00022257,2]
[388457255,1759176641997,-480.0,0.00022257,2]
[388457256,1759176642006,-480.0,0.00022257,2]
[388457257,1759176642016,-480.0,0.00022257,2]
[388457258,1759176642025,-480.0,0.00022257,2]
[388457259,1759176642034,-480.0,0.00022257,2]
[388457260,1759176642044,-480.0,0.00022257,2]
[388457261,1759176642054,-465.09851054,0.00022257,2]
[388457262,1759176642064,-480.0,0.00022257,2]
[388457263,1759176642074,-480.0,0.00022257,2]
[388457264,1759176642083,-480.0,0.00022257,2]
[388457265,1759176642092,-480.0,0.00022257,2]
[388457266,1759176642103,-485.0038613,0.00022257,2]
[388457267,1759176642111,-480.0,0.00022257,2]
[388457268,1759176642120,-480.0,0.00022257,2]
[388457269,1759176642130,-480.0,0.00022257,2]
[388457270,1759176642139,-480.0,0.00022257,2]
[388457271,1759176642148,-480.0,0.00022257,2]
[388457272,1759176642158,-518.08,0.00022257,2]
[388457273,1759176642168,-1279.16,0.00022257,2]
[388457274,1759176642176,-672.97,0.00022257,2]
[388457275,1759176642186,-778.93,0.00022257,2]
[388457276,1759176642195,-955.72,0.00022257,2]
[388457277,1759176642204,-497.45,0.00022257,2]
[388457278,1759176642213,-852.82,0.00022257,2]
[388457279,1759176642223,-480.0,0.00022257,2]
[388457280,1759176642232,-480.0,0.00022257,2]
[388457281,1759176642241,-790.08,0.00022257,2]
[388457282,1759176642251,-480.0,0.00022257,2]
[388457283,1759176642260,-1683.38,0.00022257,2]
[388457284,1759176642269,-480.0,0.00022257,2]
[388457285,1759176642278,-480.0,0.00022257,2]
[388457286,1759176642288,-899.2,0.00022257,2]
[388457287,1759176642297,-480.0,0.00022257,2]
[388457288,1759176642306,-3678.61,0.00022257,2]
[388457289,1759176642316,-694.8,0.00022257,2]
[388457290,1759176642325,-480.0,0.00022257,2]
[388457291,1759176642335,-1845.89,0.00022257,2]
[388457292,1759176642344,-480.0,0.00022257,2]
[388457293,1759176642353,-480.0,0.00022257,2]
[388457294,1759176642363,-494.6,0.00022257,2]
[388457295,1759176642372,-480.0,0.00022257,2]
[388457296,1759176642382,-3938.21,0.00022257,2]
[388457297,1759176642391,-480.0,0.00022257,2]
[388457298,1759176642401,-1050.49,0.00022257,2]
[388457299,1759176642410,-480.0,0.00022257,2]
[388457300,1759176642419,-480.0,0.00022258,2]
[388457301,1759176642428,-480.0,0.00022258,2]
[388457302,1759176642437,-480.0,0.00022258,2]
[388457303,1759176642446,-480.0,0.00022258,2]
[388457304,1759176642458,-480.0,0.00022258,2]
[388457305,1759176642467,-480.0,0.00022258,2]
[388457306,1759176642476,-162.29588017,0.00022258,2]
[388457307,1759176642485,-480.0,0.00022258,2]
[388457308,1759176642495,-480.0,0.00022258,2]
[388457309,1759176642503,-437.44316648,0.00022258,2]
[388457310,1759176642512,-480.0,0.00022258,2]
[388457311,1759176642521,-480.0,0.00022258,2]
[388457312,1759176642532,-480.0,0.00022258,2]
[388457313,1759176642541,-329.78960286,0.00022258,2]
[388457314,1759176642550,-480.0,0.00022258,2]
[388457315,1759176642559,-480.0,0.00022258,2]
[388457316,1759176642568,-480.0,0.00022258,2]
[388457317,1759176642577,-402.01044459,0.00022258,2]
[388457318,1759176642587,-480.0,0.00022258,2]
[388457319,1759176642595,-480.0,0.00022258,2]
[388457320,1759176642604,-480.0,0.00022258,2]
[388457321,1759176642614,-480.0,0.00022258,2]
[388457322,1759176642623,-1088.55,0.00022258,2]
[388457323,1759176642633,-480.0,0.00022258,2]
[388457324,1759176642642,-537.03,0.00022258,2]
[388457325,1759176642651,-480.0,0.00022258,2]
[388457326,1759176642661,-480.0,0.00022258,2]
[388457327,1759176642670,-480.0,0.00022258,2]
[388457328,1759176642679,-695.7,0.00022258,2]
[388457329,1759176642688,-480.0,0.00022258,2]
[388457330,1759176642697,-480.0,0.00022258,2]
[388457331,1759176642706,-480.0,0.00022258,2]
[388457332,1759176642715,-480.0,0.00022258,2]
[388457333,1759176642724,-480.0,0.00022258,2]
[388457335,1759176642733,-1166.45,0.00022258,2]
[388457336,1759176642742,-480.0,0.00022258,2]
[388457337,1759176642751,-613.67018955,0.00022258,2]
[388457338,1759176642760,-862.32,0.00022258,2]
[388457340,1759176642769,-823.38,0.00022258,2]
[388457342,1759176642778,-843.7,0.00022258,2]
[388457343,1759176642787,-623.05,0.00022258,2]
[388457344,1759176642796,-480.0,0.00022258,2]
[388457345,1759176642805,-480.0,0.00022258,2]
[388457346,1759176642815,-480.0,0.00022258,2]
[388457347,1759176642824,-1062.46,0.00022258,2]
[388457348,1759176642833,-480.0,0.00022258,2]
[388457349,1759176642842,-480.0,0.00022258,2]
[388457350,1759176642852,-480.0,0.00022258,2]
[388457351,1759176642861,-480.0,0.00022258,2]
[388457353,1759176642870,-480.0,0.00022258,2]
[388457354,1759176642879,-480.0,0.00022258,2]
[388457355,1759176642888,-480.0,0.00022258,2]
[388457356,1759176642898,-480.0,0.00022258,2]
[388457357,1759176642908,-480.0,0.00022258,2]
[388457358,1759176642918,-489.79,0.00022258,2]
[388457360,1759176642927,-480.0,0.00022258,2]
[388457361,1759176642936,-480.0,0.00022258,2]
[388457362,1759176642945,-480.0,0.00022258,2]
[388457363,1759176642954,-480.0,0.00022258,2]
[388457364,1759176642963,-570.79,0.00022258,2]
[388457365,1759176642972,-758.01,0.00022258,2]
[388457366,1759176642982,-480.0,0.00022258,2]
[388457367,1759176642991,-591.81,0.00022258,2]
[388457368,1759176643000,-480.0,0.00022258,2]
[388457369,1759176643009,-480.0,0.00022258,2]
[388457370,1759176643019,-553.26,0.00022258,2]
[388457371,1759176643028,-480.0,0.00022258,2]
[388457372,1759176643037,-480.0,0.00022258,2]
[388457373,1759176643046,-606.13,0.00022258,2]
[388457375,1759176643055,-480.0,0.00022258,2]
[388457376,1759176643064,-480.0,0.00022258,2]
[388457377,1759176643073,-490.52,0.00022258,2]
[388457378,1759176643082,-730.13,0.00022258,2]
[388457379,1759176643091,-480.0,0.00022258,2]
[388457380,1759176643100,-628.38,0.00022258,2]
[388457381,1759176643110,-480.0,0.00022258,2]
[388457382,1759176643120,-480.0,0.00022258,2]
[388457383,1759176643129,-480.0,0.00022258,2]
[388457384,1759176643139,-480.0,0.00022258,2]
[388457385,1759176643148,-480.0,0.00022258,2]
[388457386,1759176643158,-628.21,0.00022258,2]
[388457387,1759176643167,-480.0,0.00022258,2]
[388457388,1759176643176,-480.0,0.00022258,2]
[388457389,1759176643185,-480.0,0.00022258,2]
[388457390,1759176643194,-577.46,0.00022258,2]
[388457391,1759176643204,-870.14,0.00022258,2]
[388457392,1759176643214,-604.98,0.00022258,2]
[388457393,1759176643223,-480.0,0.00022258,2]
[388457394,1759176643232,-177.53462236,0.00022258,2]
[388457395,1759176643242,-842.47,0.00022258,2]
[388457396,1759176643251,-1537.8,0.00022258,2]
[388457397,1759176643260,-480.0,0.00022258,2]
[388457398,1759176643269,-480.0,0.00022258,2]
[388457399,1759176643278,-490.86,0.00022258,2]
[388457400,1759176643287,-640.46,0.00022258,2]
[388457401,1759176643296,-480.0,0.00022258,2]
[388457402,1759176643305,-480.0,0.00022258,2]
[388457403,1759176643314,-480.0,0.00022258,2]
[388457404,1759176643323,-1640.88,0.00022258,2]
[388457405,1759176643331,-480.0,0.00022258,2]
[388457406,1759176643340,-480.0,0.00022258,2]
[388457407,1759176643349,-480.0,0.00022258,2]
[388457408,1759176643358,-775.04,0.00022258,2]
[388457409,1759176643367,-480.0,0.00022258,2]
[388457410,1759176643376,-480.0,0.00022258,2]
[388457411,1759176643385,-545.04,0.00022258,2]
[388457412,1759176643395,-599.5,0.00022258,2]
[388457413,1759176643404,-480.0,0.00022258,2]
[388457414,1759176643413,-480.0,0.00022258,2]
[388457415,1759176643422,-480.0,0.00022258,2]
[388457417,1759176643432,-480.0,0.00022258,2]
[388457418,1759176643441,-577.36,0.00022258,2]
[388457419,1759176643451,-480.0,0.00022258,2]
[388457420,1759176643465,-480.0,0.00022258,2]
[388457421,1759176643475,-659.41,0.00022258,2]
[388457422,1759176643484,-1370.88,0.00022258,2]
[388457423,1759176643500,-578.91,0.00022258,2]
[388457424,1759176643509,-480.0,0.00022258,2]
[388457426,1759176643519,-963.73,0.00022258,2]
[388457429,1759176643529,-480.0,0.00022258,2]
[388457431,1759176643539,-480.0,0.00022258,2]
[388457433,1759176643549,-480.0,0.00022258,2]
[388457434,1759176643558,-780.14,0.00022258,2]
[388457435,1759176643568,-480.0,0.00022258,2]
[388457436,1759176643577,-480.0,0.00022258,2]
[388457437,1759176643586,-960.2,0.00022258,2]
[388457438,1759176643595,-500.0,0.00022258,2]
[388457439,1759176643604,-480.0,0.00022258,2]
[388457440,1759176643614,-481.79419202,0.00022258,2]
[388457441,1759176643623,-480.0,0.00022258,2]
[388457442,1759176643633,-480.0,0.00022258,2]
[388457443,1759176643642,-480.0,0.00022258,2]
[388457444,1759176643652,-480.0,0.00022258,2]
[388457445,1759176643661,-480.0,0.00022258,2]
[388457446,1759176643670,-480.0,0.00022258,2]
[388457447,1759176643679,-480.0,0.00022258,2]
[388457448,1759176643688,-480.0,0.00022258,2]
[388457449,1759176643697,-1708.59,0.00022258,2]
[388457450,1759176643707,-480.0,0.00022259,2]
[388457451,1759176643716,-480.0,0.00022259,2]
[388457452,1759176643726,-480.0,0.00022259,2]
[388457453,1759176643735,-480.0,0.00022259,2]
[388457454,1759176643744,-480.0,0.00022259,2]
[388457455,1759176643753,-480.0,0.00022261,2]
[388457456,1759176643763,-480.0,0.00022261,2]
[388457457,1759176643772,-480.0,0.00022261,2]
[388457458,1759176643781,-480.0,0.00022261,2]
[388457459,1759176643791,-480.0,0.00022261,2]
[388457460,1759176643799,-480.0,0.00022261,2]
[388457461,1759176643808,-500.0,0.00022261,2]
[388457462,1759176643818,-600.0,0.00022427,20]
[388457463,1759176643828,-300.82736182,0.00022494,2]
[388457464,1759176643837,-480.0,0.00022527,2]
[388457465,1759176643846,-480.0,0.00022527,2]
[388457466,1759176643855,-480.0,0.00022527,2]
[388457467,1759176643864,-703.47,0.00022527,2]
[388457468,1759176643873,-2642.2,0.00022527,2]
[388457469,1759176643882,-480.0,0.00022527,2]
[388457470,1759176643891,-480.0,0.00022527,2]
[388457471,1759176643900,-480.0,0.00022527,2]
[388457472,1759176643909,-1435.73,0.00022527,2]
[388457473,1759176643919,-968.74,0.00022527,2]
[388457474,1759176643929,-480.0,0.00022527,2]
[388457475,1759176643940,-2684.38,0.00022527,2]
[388457476,1759176643949,-619.36,0.00022527,2]
[388457477,1759176643958,-480.0,0.00022529,2]
[388457478,1759176643968,-480.0,0.00022529,2]
[388457479,1759176643982,-480.0,0.00022529,2]
[388457480,1759176643991,-480.0,0.00022529,2]
[388457481,1759176644000,-480.0,0.00022529,2]
[388457482,1759176644009,-1509.01,0.00022529,2]
[388457483,1759176644018,-480.0,0.00022529,2]
[388457484,1759176644027,-480.0,0.00022529,2]
[388457485,1759176644036,-1883.86,0.00022529,2]
[388457486,1759176644046,-480.0,0.00022529,2]
[388457487,1759176644055,-636.88,0.00022529,2]
[388457488,1759176644065,-517.28,0.00022529,2]
[388457489,1759176644074,-480.0,0.00022529,2]
[388457490,1759176644084,-1117.31,0.00022529,2]
[388457491,1759176644094,-760.29,0.00022529,2]
[388457492,1759176644103,-480.0,0.00022529,2]
[388457493,1759176644113,-958.85,0.00022529,2]
[388457494,1759176644122,-480.0,0.00022529,2]
[388457495,1759176644132,-480.0,0.00022529,2]
[388457496,1759176644141,-1403.22,0.00022529,2]
[388457497,1759176644151,-480.0,0.00022529,2]
[388457498,1759176644161,-1556.87,0.00022529,2]
[388457499,1759176644170,-480.0,0.00022529,2]
[388457500,1759176644179,-537.09,0.00022529,2]
[388457501,1759176644189,-480.0,0.00022529,2]
[388457502,1759176644199,-480.0,0.00022529,2]
[388457503,1759176644208,-753.32,0.00022529,2]
[388457504,1759176644217,-956.0,0.00022529,2]
[388457505,1759176644227,-6610.25,0.00022529,2]
[388457506,1759176644236,-1490.14,0.00022529,2]
[388457507,1759176644245,-2189.71,0.00022529,2]
[388457508,1759176644255,-480.0,0.00022529,2]
[388457509,1759176644264,-480.0,0.00022529,2]
[388457510,1759176644273,-2218.2,0.00022529,2]
[388457511,1759176644282,-480.0,0.00022529,2]
[388457512,1759176644292,-600.44,0.00022529,2]
[388457513,1759176644301,-1554.07,0.00022529,2]
[388457514,1759176644469,-480.0,0.00022529,2]
[388457515,1759176644479,-748.07,0.00022531,2]
[388457516,1759176644488,-480.0,0.00022531,2]
[388457517,1759176644499,-480.0,0.00022531,2]
[388457518,1759176644508,-480.0,0.00022531,2]
[388457519,1759176644517,-480.0,0.00022531,2]
[388457520,1759176644527,-480.0,0.00022531,2]
[388457521,1759176644537,-480.0,0.00022531,2]
[388457522,1759176644546,-480.0,0.00022531,2]
[388457523,1759176644555,-480.0,0.00022531,2]
[388457524,1759176644564,-480.0,0.00022531,2]
[388457525,1759176644573,-480.0,0.00022531,2]
[388457526,1759176644582,-480.0,0.00022531,2]
[388457527,1759176644592,-480.0,0.00022531,2]
[388457528,1759176644601,-480.0,0.00022531,2]
[388457529,1759176644619,-480.0,0.00022531,2]
[388457530,1759176644629,-480.0,0.00022531,2]
[388457531,1759176644638,-480.0,0.00022531,2]
[388457532,1759176644648,-480.0,0.00022531,2]
[388457533,1759176644657,-480.0,0.00022531,2]
[388457534,1759176644666,-518.08,0.00022531,2]
[388457535,1759176644675,-1279.16,0.00022531,2]
[388457536,1759176644684,-672.97,0.00022531,2]
[388457537,1759176644694,-778.93,0.00022531,2]
[388457538,1759176644703,-955.72,0.00022531,2]
[388457539,1759176644712,-497.45,0.00022531,2]
[388457540,1759176644722,-852.82,0.00022531,2]